[Event "Late-Titled-Tuesday-Blitz-June-18-2024"]
[Site "Chess.com"]
[Date "2024.06.18"]
[Round "5"]
[White "DeTimmerman"]
[Black "sirinbaba33"]
[Result "1-0"]
[WhiteElo "2744"]
[BlackElo "2511"]
[TimeControl "180+1"]
[EndTime "14:59:15 PDT"]
[Termination "DeTimmerman won on time"]

1. Nf3 {[%clk 0:02:59.9]} 1... d5 {[%clk 0:02:59]} 2. c4 {[%clk 0:02:52.3]} 2...
e6 {[%clk 0:02:56.6]} 3. e3 {[%clk 0:02:52]} 3... Nf6 {[%clk 0:02:54.2]} 4. b3
{[%clk 0:02:52.1]} 4... c6 {[%clk 0:02:39.9]} 5. Bb2 {[%clk 0:02:52.1]} 5... Bd6
{[%clk 0:02:39.4]} 6. Be2 {[%clk 0:02:51.6]} 6... Nbd7 {[%clk 0:02:38.9]} 7. O-O
{[%clk 0:02:49.6]} 7... e5 {[%clk 0:02:37]} 8. cxd5 {[%clk 0:02:44.7]} 8... cxd5
{[%clk 0:02:36.7]} 9. Nc3 {[%clk 0:02:44.7]} 9... a6 {[%clk 0:02:35.2]} 10. d3
{[%clk 0:02:32.4]} 10... O-O {[%clk 0:02:34.6]} 11. e4 {[%clk 0:02:13.1]} 11...
d4 {[%clk 0:02:17.7]} 12. Nb1 {[%clk 0:02:13]} 12... Re8 {[%clk 0:02:03.1]} 13.
Nbd2 {[%clk 0:02:07.3]} 13... b5 {[%clk 0:01:56.7]} 14. a4 {[%clk 0:02:06.6]}
14... Rb8 {[%clk 0:01:56.9]} 15. Ba3 {[%clk 0:02:04.2]} 15... Qe7 {[%clk
0:01:51.4]} 16. Bxd6 {[%clk 0:02:04]} 16... Qxd6 {[%clk 0:01:52.3]} 17. Qc2
{[%clk 0:02:00.7]} 17... Rb6 {[%clk 0:01:45.6]} 18. Rfc1 {[%clk 0:02:00.5]}
18... Bb7 {[%clk 0:01:45.6]} 19. Qc7 {[%clk 0:01:56.8]} 19... Qf8 {[%clk
0:01:18.5]} 20. a5 {[%clk 0:01:53]} 20... Rc8 {[%clk 0:01:13.7]} 21. axb6 {[%clk
0:01:53.1]} 21... Rxc7 {[%clk 0:01:14.2]} 22. bxc7 {[%clk 0:01:54]} 22... Qc8
{[%clk 0:01:12.2]} 23. b4 {[%clk 0:01:48.7]} 23... Ne8 {[%clk 0:01:06.9]} 24.
Rc2 {[%clk 0:01:43.8]} 24... Nb6 {[%clk 0:00:57.2]} 25. Nxe5 {[%clk 0:01:43.4]}
25... g6 {[%clk 0:00:51.5]} 26. Bg4 {[%clk 0:01:25.1]} 26... f5 {[%clk
0:00:51.3]} 27. exf5 {[%clk 0:01:26]} 27... gxf5 {[%clk 0:00:43.7]} 28. Bf3
{[%clk 0:01:26.3]} 28... Bxf3 {[%clk 0:00:41.3]} 29. Ndxf3 {[%clk 0:01:27.2]}
29... Na8 {[%clk 0:00:41.3]} 30. Nxd4 {[%clk 0:01:18.2]} 30... Naxc7 {[%clk
0:00:41.5]} 31. Rac1 {[%clk 0:01:04.4]} 31... f4 {[%clk 0:00:30.9]} 32. Ne2
{[%clk 0:00:36.3]} 32... Qf5 {[%clk 0:00:26.3]} 33. d4 {[%clk 0:00:36.8]} 33...
Qe4 {[%clk 0:00:19.2]} 34. Kf1 {[%clk 0:00:30.4]} 34... Qf5 {[%clk 0:00:18]} 35.
Rxc7 {[%clk 0:00:21.2]} 35... Nxc7 {[%clk 0:00:17.9]} 36. Rxc7 {[%clk
0:00:22.1]} 36... Qb1+ {[%clk 0:00:18.5]} 37. Rc1 {[%clk 0:00:19.1]} 37... Qxb4
{[%clk 0:00:19]} 38. d5 {[%clk 0:00:15.4]} 38... Qd6 {[%clk 0:00:18.2]} 39. Rc8+
{[%clk 0:00:10.4]} 39... Kg7 {[%clk 0:00:17.5]} 40. Nd3 {[%clk 0:00:11]} 40...
Qxd5 {[%clk 0:00:17]} 41. Nexf4 {[%clk 0:00:11]} 41... Qd6 {[%clk 0:00:15]} 42.
Rc7+ {[%clk 0:00:06.1]} 42... Kh8 {[%clk 0:00:13.5]} 43. Ra7 {[%clk 0:00:07]}
43... Qb6 {[%clk 0:00:13]} 44. Ra8+ {[%clk 0:00:07.1]} 44... Kg7 {[%clk
0:00:13.5]} 45. g4 {[%clk 0:00:06.3]} 45... b4 {[%clk 0:00:12.1]} 46. Nh5+
{[%clk 0:00:04.9]} 46... Kh6 {[%clk 0:00:11.7]} 47. Rf8 {[%clk 0:00:04.4]} 47...
Qb7 {[%clk 0:00:07]} 48. h4 {[%clk 0:00:04.4]} 48... Qh1+ {[%clk 0:00:04.9]} 49.
Ke2 {[%clk 0:00:05.1]} 49... Qe4+ {[%clk 0:00:05.6]} 50. Kd2 {[%clk 0:00:05.2]}
50... Qxg4 {[%clk 0:00:06.2]} 51. Ng3 {[%clk 0:00:04.5]} 51... Qd7 {[%clk
0:00:04.8]} 52. Rf4 {[%clk 0:00:05]} 52... Kg7 {[%clk 0:00:04.4]} 53. Rxb4
{[%clk 0:00:05.1]} 53... Qa7 {[%clk 0:00:02.8]} 54. Ra4 {[%clk 0:00:05.1]} 54...
a5 {[%clk 0:00:02.8]} 55. Nh5+ {[%clk 0:00:06]} 55... Kh6 {[%clk 0:00:02.9]} 56.
Nhf4 {[%clk 0:00:06.9]} 56... Qb6 {[%clk 0:00:03.5]} 57. Ra2 {[%clk 0:00:07.3]}
57... Qb5 {[%clk 0:00:03.4]} 58. Rb2 {[%clk 0:00:08.2]} 58... Qa4 {[%clk
0:00:03.6]} 59. Ke3 {[%clk 0:00:08.6]} 59... Qa3 {[%clk 0:00:03]} 60. Rb6+
{[%clk 0:00:09]} 60... Kg7 {[%clk 0:00:03.5]} 61. Nh5+ {[%clk 0:00:09.6]} 61...
Kf8 {[%clk 0:00:03.2]} 62. Nf6 {[%clk 0:00:10.1]} 62... Qe7+ {[%clk 0:00:02.2]}
63. Ne4 {[%clk 0:00:11]} 63... Qa3 {[%clk 0:00:02.1]} 64. Rb7 {[%clk 0:00:10.7]}
64... a4 {[%clk 0:00:01.7]} 65. Ng5 {[%clk 0:00:10.5]} 65... h6 {[%clk
0:00:01.2]} 66. Ne6+ {[%clk 0:00:10.5]} 66... Kg8 {[%clk 0:00:01.6]} 67. f4
{[%clk 0:00:11.4]} 1-0

[Event "Late-Titled-Tuesday-Blitz-June-18-2024"]
[Site "Chess.com"]
[Date "2024.06.18"]
[Round "5"]
[White "bob1263"]
[Black "farzadbfd"]
[Result "1/2-1/2"]
[WhiteElo "2516"]
[BlackElo "2695"]
[TimeControl "180+1"]
[EndTime "14:59:16 PDT"]
[Termination "Game drawn by repetition"]

1. d4 {[%clk 0:02:45.2]} 1... Nf6 {[%clk 0:02:59.7]} 2. c4 {[%clk 0:02:43.1]}
2... e6 {[%clk 0:02:58.9]} 3. Nc3 {[%clk 0:02:28.6]} 3... Bb4 {[%clk 0:02:58.3]}
4. Bg5 {[%clk 0:02:26.7]} 4... h6 {[%clk 0:02:53.6]} 5. Bh4 {[%clk 0:01:42.1]}
5... d5 {[%clk 0:02:53.1]} 6. e3 {[%clk 0:01:39.4]} 6... c5 {[%clk 0:02:52.9]}
7. cxd5 {[%clk 0:01:36.4]} 7... exd5 {[%clk 0:02:50.3]} 8. Nf3 {[%clk
0:01:22.6]} 8... g5 {[%clk 0:02:48.8]} 9. Bg3 {[%clk 0:01:21.5]} 9... Ne4 {[%clk
0:02:48.4]} 10. Rc1 {[%clk 0:01:17.1]} 10... Qa5 {[%clk 0:02:44.1]} 11. Qc2
{[%clk 0:01:00.9]} 11... Qxa2 {[%clk 0:02:41.6]} 12. Bd3 {[%clk 0:00:54]} 12...
Bxc3+ {[%clk 0:02:30.6]} 13. bxc3 {[%clk 0:00:50.2]} 13... Qxc2 {[%clk
0:02:28.6]} 14. Rxc2 {[%clk 0:00:48.2]} 14... Bf5 {[%clk 0:02:26.2]} 15. Be5
{[%clk 0:00:38.8]} 15... O-O {[%clk 0:02:08.5]} 16. dxc5 {[%clk 0:00:37.9]}
16... Nd7 {[%clk 0:01:48.9]} 17. Bd4 {[%clk 0:00:37]} 17... Rfc8 {[%clk
0:01:28.6]} 18. h4 {[%clk 0:00:35.2]} 18... g4 {[%clk 0:01:27.3]} 19. Ne5 {[%clk
0:00:34.7]} 19... Nxe5 {[%clk 0:01:25.8]} 20. Bxe5 {[%clk 0:00:34.3]} 20... Rxc5
{[%clk 0:01:26]} 21. f3 {[%clk 0:00:33.8]} 21... Ng3 {[%clk 0:01:15.8]} 22. Bxf5
{[%clk 0:00:31.7]} 22... Nxf5 {[%clk 0:01:10.4]} 23. Kd2 {[%clk 0:00:28.2]}
23... h5 {[%clk 0:00:44.8]} 24. fxg4 {[%clk 0:00:24.7]} 24... hxg4 {[%clk
0:00:45]} 25. Rf1 {[%clk 0:00:24.7]} 25... Nxh4 {[%clk 0:00:38.4]} 26. Rh1
{[%clk 0:00:23.2]} 26... Ng6 {[%clk 0:00:37.7]} 27. Bd4 {[%clk 0:00:21.5]} 27...
Rc6 {[%clk 0:00:25.6]} 28. Rh5 {[%clk 0:00:21.2]} 28... Rd6 {[%clk 0:00:19.8]}
29. Rc1 {[%clk 0:00:20.1]} 29... Rc8 {[%clk 0:00:04]} 30. Rch1 {[%clk
0:00:19.6]} 30... Kf8 {[%clk 0:00:04.6]} 31. Rh8+ {[%clk 0:00:16.9]} 31... Nxh8
{[%clk 0:00:05.2]} 32. Rxh8+ {[%clk 0:00:16.1]} 32... Ke7 {[%clk 0:00:06.1]} 33.
Rxc8 {[%clk 0:00:16.6]} 33... Ra6 {[%clk 0:00:07]} 34. Rc7+ {[%clk 0:00:16.6]}
34... Ke6 {[%clk 0:00:07.4]} 35. Rxb7 {[%clk 0:00:17.1]} 35... Ra2+ {[%clk
0:00:08]} 36. Ke1 {[%clk 0:00:16.3]} 36... Rxg2 {[%clk 0:00:08.9]} 37. Rxa7
{[%clk 0:00:16.4]} 37... Kf5 {[%clk 0:00:09.4]} 38. Kf1 {[%clk 0:00:16.5]} 38...
Rc2 {[%clk 0:00:08.4]} 39. Rxf7+ {[%clk 0:00:17]} 39... Ke4 {[%clk 0:00:09]} 40.
Rf4+ {[%clk 0:00:16.9]} 40... Kd3 {[%clk 0:00:09.7]} 41. Rxg4 {[%clk 0:00:17.1]}
41... Rc1+ {[%clk 0:00:09.5]} 42. Kf2 {[%clk 0:00:16.4]} 42... Rc2+ {[%clk
0:00:09.8]} 43. Kg3 {[%clk 0:00:16.6]} 43... Re2 {[%clk 0:00:09.6]} 44. Rf4
{[%clk 0:00:16.2]} 44... Kc4 {[%clk 0:00:09.2]} 45. Rf5 {[%clk 0:00:16.4]} 45...
Re1 {[%clk 0:00:08.5]} 46. Kf4 {[%clk 0:00:16.6]} 46... Rh1 {[%clk 0:00:08.7]}
47. Ke5 {[%clk 0:00:16.4]} 47... Rh8 {[%clk 0:00:09.1]} 48. Rf6 {[%clk
0:00:16.5]} 48... Re8+ {[%clk 0:00:09.3]} 49. Kf5 {[%clk 0:00:16.9]} 49... Kd3
{[%clk 0:00:08.9]} 50. Rd6 {[%clk 0:00:16.9]} 50... Kc4 {[%clk 0:00:08.8]} 51.
Re6 {[%clk 0:00:17]} 51... Rd8 {[%clk 0:00:08.9]} 52. e4 {[%clk 0:00:16.4]}
52... dxe4 {[%clk 0:00:08.7]} 53. Rxe4 {[%clk 0:00:16.5]} 53... Kd3 {[%clk
0:00:09.4]} 54. Re6 {[%clk 0:00:16.9]} 54... Kc4 {[%clk 0:00:09.8]} 55. Ke5
{[%clk 0:00:17.4]} 55... Rd5+ {[%clk 0:00:09.5]} 56. Kf6 {[%clk 0:00:17.1]}
56... Rd8 {[%clk 0:00:10.4]} 57. Re7 {[%clk 0:00:17.1]} 57... Rd5 {[%clk
0:00:09.4]} 58. Ke6 {[%clk 0:00:17.3]} 58... Rh5 {[%clk 0:00:09.2]} 59. Rc7+
{[%clk 0:00:17.3]} 59... Kb5 {[%clk 0:00:09.1]} 60. Be5 {[%clk 0:00:17.2]} 60...
Rh4 {[%clk 0:00:08.6]} 61. c4+ {[%clk 0:00:16.6]} 61... Rxc4 {[%clk 0:00:08.2]}
62. Rb7+ {[%clk 0:00:15.7]} 62... Kc6 {[%clk 0:00:08.1]} 63. Rc7+ {[%clk
0:00:15.5]} 63... Kb5 {[%clk 0:00:08.4]} 64. Rb7+ {[%clk 0:00:15.6]} 64... Kc6
{[%clk 0:00:08.8]} 65. Rb1 {[%clk 0:00:15.5]} 65... Rc2 {[%clk 0:00:07.5]} 66.
Rb3 {[%clk 0:00:14.7]} 66... Rc4 {[%clk 0:00:07.8]} 67. Rb8 {[%clk 0:00:14.5]}
67... Kc5 {[%clk 0:00:06.7]} 68. Rc8+ {[%clk 0:00:14.4]} 68... Kb5 {[%clk
0:00:06.5]} 69. Rb8+ {[%clk 0:00:13.6]} 69... Kc6 {[%clk 0:00:07.1]} 70. Bd6
{[%clk 0:00:13.4]} 70... Re4+ {[%clk 0:00:06.2]} 71. Be5 {[%clk 0:00:13.6]}
71... Rc4 {[%clk 0:00:06.9]} 72. Rc8+ {[%clk 0:00:12.9]} 72... Kb5 {[%clk
0:00:07.2]} 73. Rb8+ {[%clk 0:00:13]} 73... Kc6 {[%clk 0:00:07.8]} 1/2-1/2

[Event "Late-Titled-Tuesday-Blitz-June-18-2024"]
[Site "Chess.com"]
[Date "2024.06.18"]
[Round "5"]
[White "mfschulz"]
[Black "Masterisback04"]
[Result "0-1"]
[WhiteElo "2202"]
[BlackElo "2131"]
[TimeControl "180+1"]
[EndTime "14:59:16 PDT"]
[Termination "Masterisback04 won by checkmate"]

1. d4 {[%clk 0:02:59.2]} 1... Nf6 {[%clk 0:02:59.5]} 2. Bg5 {[%clk 0:02:59]}
2... Ne4 {[%clk 0:02:58.4]} 3. Bf4 {[%clk 0:02:59]} 3... c5 {[%clk 0:02:54.1]}
4. f3 {[%clk 0:02:59]} 4... Nf6 {[%clk 0:02:51.6]} 5. d5 {[%clk 0:02:58.6]} 5...
Qb6 {[%clk 0:02:41.7]} 6. Nc3 {[%clk 0:02:57.8]} 6... g6 {[%clk 0:02:39]} 7. e4
{[%clk 0:02:57]} 7... Bg7 {[%clk 0:02:38]} 8. Bc4 {[%clk 0:02:46.2]} 8... O-O
{[%clk 0:02:16.6]} 9. Nge2 {[%clk 0:02:45.9]} 9... d6 {[%clk 0:02:08.1]} 10. O-O
{[%clk 0:02:42.9]} 10... Nh5 {[%clk 0:01:52.1]} 11. Bd2 {[%clk 0:02:40.9]} 11...
Nd7 {[%clk 0:01:51.5]} 12. a4 {[%clk 0:02:39.1]} 12... a6 {[%clk 0:01:50.8]} 13.
a5 {[%clk 0:02:38.4]} 13... Qa7 {[%clk 0:01:47.7]} 14. g4 {[%clk 0:02:36]} 14...
Ne5 {[%clk 0:01:44.8]} 15. b3 {[%clk 0:02:27.9]} 15... Nf6 {[%clk 0:01:43]} 16.
Na4 {[%clk 0:02:21.1]} 16... Nxc4 {[%clk 0:01:38.4]} 17. bxc4 {[%clk 0:02:20.2]}
17... h5 {[%clk 0:01:26.2]} 18. g5 {[%clk 0:02:16.1]} 18... Nh7 {[%clk
0:01:20.9]} 19. h4 {[%clk 0:02:15.6]} 19... f6 {[%clk 0:01:15.6]} 20. Nb6 {[%clk
0:02:13.6]} 20... Bh3 {[%clk 0:01:14.1]} 21. Rf2 {[%clk 0:01:53.9]} 21... fxg5
{[%clk 0:01:07.4]} 22. hxg5 {[%clk 0:01:52.9]} 22... Rae8 {[%clk 0:00:52.8]} 23.
Kh2 {[%clk 0:01:51.3]} 23... Bc8 {[%clk 0:00:50.3]} 24. Bc3 {[%clk 0:01:42.3]}
24... Nxg5 {[%clk 0:00:39]} 25. Bxg7 {[%clk 0:01:40.3]} 25... Kxg7 {[%clk
0:00:39.9]} 26. Ng3 {[%clk 0:01:36.9]} 26... Bg4 {[%clk 0:00:35.1]} 27. Nf5+
{[%clk 0:01:31.5]} 27... gxf5 {[%clk 0:00:34.1]} 28. fxg4 {[%clk 0:01:31.3]}
28... fxg4 {[%clk 0:00:33.6]} 29. Rf5 {[%clk 0:01:24.9]} 29... Rxf5 {[%clk
0:00:25.6]} 30. exf5 {[%clk 0:01:24.4]} 30... Qb8 {[%clk 0:00:11.6]} 31. Qd3
{[%clk 0:01:19.5]} 31... Nf3+ {[%clk 0:00:08.6]} 32. Kg3 {[%clk 0:01:18.1]}
32... Ne5 {[%clk 0:00:08.8]} 33. Qe4 {[%clk 0:01:16.6]} 33... Kf6 {[%clk
0:00:06.3]} 34. Rh1 {[%clk 0:01:14.5]} 34... Rh8 {[%clk 0:00:05.8]} 35. Qf4
{[%clk 0:01:03.3]} 35... h4+ {[%clk 0:00:05]} 36. Rxh4 {[%clk 0:01:00.9]} 36...
Rxh4 {[%clk 0:00:04.6]} 37. Kxh4 {[%clk 0:01:00.7]} 37... Qh8+ {[%clk 0:00:05]}
38. Kg3 {[%clk 0:00:58.9]} 38... Qh3+ {[%clk 0:00:05.2]} 39. Kf2 {[%clk
0:00:58.7]} 39... Qh4+ {[%clk 0:00:03.5]} 40. Qg3 {[%clk 0:00:52.1]} 40... Qxg3+
{[%clk 0:00:02.5]} 41. Kxg3 {[%clk 0:00:52.1]} 41... Kxf5 {[%clk 0:00:03.4]} 42.
Nc8 {[%clk 0:00:47.8]} 42... Kf6 {[%clk 0:00:03.4]} 43. Kf4 {[%clk 0:00:48]}
43... Nxc4 {[%clk 0:00:03.8]} 44. Kxg4 {[%clk 0:00:44.9]} 44... Nxa5 {[%clk
0:00:03.9]} 45. Kf4 {[%clk 0:00:44.6]} 45... Nc4 {[%clk 0:00:04.2]} 46. Ke4
{[%clk 0:00:44.2]} 46... a5 {[%clk 0:00:03.6]} 47. Kd3 {[%clk 0:00:43.6]} 47...
b5 {[%clk 0:00:04]} 48. Na7 {[%clk 0:00:41.4]} 48... Ne5+ {[%clk 0:00:02.2]} 49.
Kc3 {[%clk 0:00:41.2]} 49... b4+ {[%clk 0:00:01.2]} 50. Kb3 {[%clk 0:00:41.5]}
50... Kf5 {[%clk 0:00:01.7]} 51. Ka4 {[%clk 0:00:41.6]} 51... Ke4 {[%clk
0:00:02.2]} 52. Nc6 {[%clk 0:00:39.1]} 52... Kxd5 {[%clk 0:00:02.1]} 53. Nxe7+
{[%clk 0:00:38.8]} 53... Kc4 {[%clk 0:00:01.4]} 54. Kxa5 {[%clk 0:00:37.7]}
54... d5 {[%clk 0:00:01.5]} 55. Ka4 {[%clk 0:00:36.7]} 55... d4 {[%clk
0:00:02.1]} 56. Nf5 {[%clk 0:00:32.2]} 56... Kc3 {[%clk 0:00:02.6]} 57. Nd6
{[%clk 0:00:29.5]} 57... c4 {[%clk 0:00:02.2]} 58. Nb5+ {[%clk 0:00:27.4]} 58...
Kxc2 {[%clk 0:00:02.6]} 59. Nxd4+ {[%clk 0:00:27.6]} 59... Kd3 {[%clk 0:00:03]}
60. Nb5 {[%clk 0:00:26.7]} 60... b3 {[%clk 0:00:02.6]} 61. Ka3 {[%clk
0:00:21.9]} 61... Nc6 {[%clk 0:00:02.4]} 62. Kb2 {[%clk 0:00:20.2]} 62... Nd4
{[%clk 0:00:02.9]} 63. Nd6 {[%clk 0:00:18.7]} 63... c3+ {[%clk 0:00:03]} 64. Kb1
{[%clk 0:00:18.1]} 64... c2+ {[%clk 0:00:02.6]} 65. Kb2 {[%clk 0:00:17.8]} 65...
Ne2 {[%clk 0:00:01.7]} 66. Nb5 {[%clk 0:00:09.8]} 66... c1=Q+ {[%clk 0:00:01.9]}
67. Kxb3 {[%clk 0:00:09.9]} 67... Qc4+ {[%clk 0:00:02.2]} 68. Ka3 {[%clk
0:00:07.5]} 68... Qxb5 {[%clk 0:00:02.6]} 69. Ka2 {[%clk 0:00:07.3]} 69... Kc2
{[%clk 0:00:03.2]} 70. Ka3 {[%clk 0:00:06.1]} 70... Qb3# {[%clk 0:00:03.3]} 0-1

[Event "Late-Titled-Tuesday-Blitz-June-18-2024"]
[Site "Chess.com"]
[Date "2024.06.18"]
[Round "5"]
[White "Annawel"]
[Black "dropstoneDP"]
[Result "1-0"]
[WhiteElo "3085"]
[BlackElo "2972"]
[TimeControl "180+1"]
[EndTime "14:59:18 PDT"]
[Termination "Annawel won on time"]

1. e4 {[%clk 0:03:00.9]} 1... e5 {[%clk 0:02:58.6]} 2. Nf3 {[%clk 0:02:58.4]}
2... Nf6 {[%clk 0:02:59.2]} 3. d3 {[%clk 0:02:58.8]} 3... Nc6 {[%clk 0:02:58]}
4. g3 {[%clk 0:02:58.8]} 4... d5 {[%clk 0:02:56.1]} 5. exd5 {[%clk 0:02:59.7]}
5... Nxd5 {[%clk 0:02:57]} 6. Bg2 {[%clk 0:03:00.1]} 6... Bc5 {[%clk 0:02:55.3]}
7. O-O {[%clk 0:02:59.7]} 7... O-O {[%clk 0:02:55.6]} 8. Nc3 {[%clk 0:02:58.3]}
8... Nxc3 {[%clk 0:02:53.7]} 9. bxc3 {[%clk 0:02:59.2]} 9... h6 {[%clk
0:02:53.8]} 10. Re1 {[%clk 0:02:58.4]} 10... Re8 {[%clk 0:02:52.8]} 11. d4
{[%clk 0:02:45.7]} 11... exd4 {[%clk 0:02:52.4]} 12. Rxe8+ {[%clk 0:02:45.5]}
12... Qxe8 {[%clk 0:02:52.6]} 13. cxd4 {[%clk 0:02:46.1]} 13... Bd6 {[%clk
0:02:49.7]} 14. c4 {[%clk 0:02:37.1]} 14... Bg4 {[%clk 0:02:47.9]} 15. Be3
{[%clk 0:02:36]} 15... Rd8 {[%clk 0:02:45.2]} 16. Qc2 {[%clk 0:02:21.6]} 16...
b6 {[%clk 0:02:29.1]} 17. Nd2 {[%clk 0:02:14.6]} 17... Nb4 {[%clk 0:02:26.8]}
18. Qb3 {[%clk 0:02:11.5]} 18... c5 {[%clk 0:02:21.9]} 19. Ne4 {[%clk
0:02:05.5]} 19... Bf8 {[%clk 0:02:10]} 20. dxc5 {[%clk 0:02:02.2]} 20... bxc5
{[%clk 0:02:10.1]} 21. Nxc5 {[%clk 0:01:59.2]} 21... Bxc5 {[%clk 0:02:09.3]} 22.
Bxc5 {[%clk 0:01:59.4]} 22... Qe5 {[%clk 0:02:10.1]} 23. Rb1 {[%clk 0:01:41.4]}
23... Qxc5 {[%clk 0:02:09.9]} 24. h3 {[%clk 0:01:40.6]} 24... Nd3 {[%clk
0:01:54.7]} 25. hxg4 {[%clk 0:01:32.8]} 25... Qxf2+ {[%clk 0:01:54.9]} 26. Kh2
{[%clk 0:01:33.3]} 26... Ne1 {[%clk 0:01:49.5]} 27. Rb2 {[%clk 0:01:28.8]} 27...
Nf3+ {[%clk 0:01:49.3]} 28. Kh3 {[%clk 0:01:23.7]} 28... Ng1+ {[%clk 0:01:46]}
29. Kh2 {[%clk 0:01:22.6]} 29... Nf3+ {[%clk 0:01:38.4]} 30. Kh3 {[%clk
0:01:22.4]} 30... Ng5+ {[%clk 0:01:30.2]} 31. Kh2 {[%clk 0:01:22.7]} 31... Qe1
{[%clk 0:01:21.3]} 32. Qc2 {[%clk 0:00:52.4]} 32... g6 {[%clk 0:01:15.3]} 33.
Qf2 {[%clk 0:00:47.4]} 33... Qc3 {[%clk 0:01:11.7]} 34. Bd5 {[%clk 0:00:40.6]}
34... Rd7 {[%clk 0:01:01.2]} 35. Rc2 {[%clk 0:00:25.2]} 35... Qa1 {[%clk
0:01:00.9]} 36. Bg2 {[%clk 0:00:19.4]} 36... Kg7 {[%clk 0:00:34.9]} 37. c5
{[%clk 0:00:19.5]} 37... Qe5 {[%clk 0:00:33.3]} 38. c6 {[%clk 0:00:17.1]} 38...
Rc7 {[%clk 0:00:33.9]} 39. Qf4 {[%clk 0:00:17.3]} 39... Qxf4 {[%clk 0:00:13.2]}
40. gxf4 {[%clk 0:00:18.2]} 40... Ne6 {[%clk 0:00:14.1]} 41. Kg3 {[%clk
0:00:18.8]} 41... f5 {[%clk 0:00:13.7]} 42. gxf5 {[%clk 0:00:17.2]} 42... Nd4
{[%clk 0:00:14.1]} 43. Rd2 {[%clk 0:00:16.2]} 43... Nxf5+ {[%clk 0:00:14]} 44.
Kf2 {[%clk 0:00:16.5]} 44... Kf6 {[%clk 0:00:14]} 45. Be4 {[%clk 0:00:15.2]}
45... h5 {[%clk 0:00:13.3]} 46. Rd8 {[%clk 0:00:08.2]} 46... Ke6 {[%clk
0:00:10.4]} 47. Rg8 {[%clk 0:00:03]} 47... Ne7 {[%clk 0:00:10.1]} 48. Rd8 {[%clk
0:00:01.5]} 48... Nxc6 {[%clk 0:00:08.9]} 49. Rf8 {[%clk 0:00:01.1]} 49... Ne7
{[%clk 0:00:09.2]} 50. Ra8 {[%clk 0:00:01.4]} 50... Rc4 {[%clk 0:00:07.2]} 51.
Ke3 {[%clk 0:00:01.7]} 51... Ra4 {[%clk 0:00:07.2]} 52. Bc2 {[%clk 0:00:02.4]}
52... Nd5+ {[%clk 0:00:05.7]} 53. Kd2 {[%clk 0:00:02]} 53... Rxa2 {[%clk
0:00:06.1]} 54. Kc1 {[%clk 0:00:02.1]} 54... Nxf4 {[%clk 0:00:06.5]} 55. Bb3+
{[%clk 0:00:02.3]} 55... Kf5 {[%clk 0:00:05.3]} 56. Bxa2 {[%clk 0:00:03.2]}
56... h4 {[%clk 0:00:06.2]} 57. Rxa7 {[%clk 0:00:03.9]} 57... h3 {[%clk
0:00:06.3]} 58. Rh7 {[%clk 0:00:04.1]} 58... Kg4 {[%clk 0:00:03.8]} 59. Kd2
{[%clk 0:00:04.3]} 59... Kg3 {[%clk 0:00:04.4]} 60. Ke3 {[%clk 0:00:02.9]} 60...
g5 {[%clk 0:00:04.8]} 61. Bc4 {[%clk 0:00:02.8]} 61... g4 {[%clk 0:00:04.8]} 62.
Ba6 {[%clk 0:00:02.8]} 62... h2 {[%clk 0:00:04.2]} 63. Bb7 {[%clk 0:00:03]}
63... Nh3 {[%clk 0:00:03]} 64. Ke2 {[%clk 0:00:03.5]} 64... Nf4+ {[%clk
0:00:02.4]} 65. Kf1 {[%clk 0:00:04]} 65... Ng6 {[%clk 0:00:01.4]} 66. Rh6 {[%clk
0:00:03.7]} 66... Nh4 {[%clk 0:00:01.8]} 67. Ba8 {[%clk 0:00:04.1]} 1-0